Service Area,Expense Type,Date,Transaction Number,Amount,Supplier
Public Con   General (Was Attendance),Prop Svs   Bldg Mtce,2010-04-08,5000071187,864.58,Mansell Construction Services Ltd
Public Con   General (Was Attendance),Prop Svs Planned Mtc,2010-04-08,5000071066,1081.0,Mansell Construction [Sb]
Public Con   General (Was Attendance),Water And Sewerage,2010-04-13,1900159855,1034.33,Southern Water Authority
Public Con   General (Was Attendance),Water And Sewerage,2010-04-14,1900164373,643.64,Southern Water Authority
Public Con   General (Was Attendance),Water And Sewerage,2010-04-14,1900164371,1197.63,Southern Water Authority
Public Con   General (Was Attendance),Prop Svs Planned Mtc,2010-04-19,5000072711,6481.5,Wallgate Ltd
Public Con   General (Was Attendance),Prop Svs Planned Mtc,2010-04-19,5000072734,765.18,D A R E S Ltd
Public Con   General (Was Attendance),Prop Svs   Bldg Mtce,2010-04-26,5000074320,670.24,Mansell Construction [Sb]
Public Con   General (Was Attendance),Water And Sewerage,2010-04-26,1900165677,1144.56,Southern Water Authority
Public Con   General (Was Attendance),Water And Sewerage,2010-04-26,1900165679,501.98,Southern Water Authority
Public Con   General (Was Attendance),Water And Sewerage,2010-04-27,1900165820,741.61,Southern Water Authority
Public Con   General (Was Attendance),Water And Sewerage,2010-04-27,1900165730,823.49,Southern Water Authority
Public Con   General (Was Attendance),Electricity,2010-04-27,1900165839,612.7,Edf Energy 1 Ltd
Public Con   General (Was Attendance),Prop Svs Planned Mtc,2010-04-30,5000075716,-3500.0,Southern Electric
Public Con   General (Was Attendance),Prop Svs Planned Mtc,2010-04-30,5000075717,705.05,Southern Electric
Public Con   General (Was Attendance),Prop Svs Planned Mtc,2010-04-30,5000075714,3500.0,Southern Electric
Public Con   General (Was Attendance),Pay To Pvte Contract,2010-05-06,5000076451,874.0,Dmr Engineering (Iw) Ltd
Public Con   General (Was Attendance),Water And Sewerage,2010-05-06,1900171723,1494.58,Southern Water Authority
Public Con   General (Was Attendance),Water And Sewerage,2010-05-06,1900171649,1080.14,Southern Water Authority
Public Con   General (Was Attendance),Water And Sewerage,2010-05-12,1900176561,583.46,Southern Water Authority
Public Con   General (Was Attendance),Prop Svs Planned Mtc,2010-05-17,5000078303,856.98,D A R E S Ltd
Public Con   General (Was Attendance),Prop Svs Planned Mtc,2010-05-18,5000078941,545.0,Tim Knight Roofing Services Ltd
Public Con   General (Was Attendance),Prop Svs   Vandalism,2010-05-18,5000078939,767.79,Mansell Construction [Sb]
Public Con   General (Was Attendance),Prop Svs   Bldg Mtce,2010-05-21,5000079627,2389.56,Mansell Construction [Sb]
Public Con   General (Was Attendance),Water And Sewerage,2010-05-25,1900178124,1277.02,Southern Water Authority
Public Con   General (Was Attendance),Prop Svs Planned Mtc,2010-06-04,5000082159,3245.91,Southern Electric
Public Con   General (Was Attendance),Water And Sewerage,2010-06-07,1900184767,2932.83,Southern Water Authority
Public Con   General (Was Attendance),Water And Sewerage,2010-06-07,1900184770,1749.77,Southern Water Authority
Public Con   General (Was Attendance),Pay To Pvte Contract,2010-06-09,5000082893,686.0,Fountains Environmental Ltd
Public Con   General (Was Attendance),Pay To Pvte Contract,2010-06-14,5000083991,10364.53,Fountains Environmental Ltd
Public Con   General (Was Attendance),Pay To Pvte Contract,2010-06-14,5000083990,12555.45,Fountains Environmental Ltd
Public Con   General (Was Attendance),Electricity,2010-06-15,1900190068,549.36,Edf Energy 1 Ltd
Public Con   General (Was Attendance),Pay To Pvte Contract,2010-06-16,5000084526,680.0,Jmc Ag Ltd
Public Con   General (Was Attendance),Prop Svs Planned Mtc,2010-06-16,5000084800,666.54,D A R E S Ltd
Public Con   General (Was Attendance),Pay To Pvte Contract,2010-06-21,5000085688,973.0,Mansell Construction [Sb]
Public Con   General (Was Attendance),Water And Sewerage,2010-06-23,1900192284,764.78,Southern Water Authority
Public Con   General (Was Attendance),Water And Sewerage,2010-06-23,1900191764,530.15,Southern Water Authority
Public Con   General (Was Attendance),Prop Svs   Bldg Mtce,2010-06-24,5000086517,682.65,Mansell Construction [Sb]
Public Con   General (Was Attendance),Prop Svs   Bldg Mtce,2010-06-25,5000086751,687.0,Mansell Construction [Sb]
Public Con   General (Was Attendance),Water And Sewerage,2010-06-28,1900196585,589.29,Southern Water Authority
Public Con   General (Was Attendance),Water And Sewerage,2010-06-28,1900196590,715.64,Southern Water Authority
Public Con   General (Was Attendance),Water And Sewerage,2010-07-08,1900202119,578.0,Southern Water Authority
Public Con   General (Was Attendance),Prop Svs Planned Mtc,2010-07-20,5000091416,761.76,D A R E S Ltd
Public Con   General (Was Attendance),Water And Sewerage,2010-07-20,1900203120,1059.27,Southern Water Authority
Public Con   General (Was Attendance),Water And Sewerage,2010-07-20,1700028930,-1059.27,Southern Water Authority
Public Con   General (Was Attendance),Water And Sewerage,2010-07-20,1700028929,-1059.27,Southern Water Authority
Public Con   General (Was Attendance),Prop Svs   Bldg Mtce,2010-07-26,5000092288,1894.0,Mansell Construction [Sb]
Public Con   General (Was Attendance),Water And Sewerage,2010-07-28,1900208835,678.6,Southern Water Authority
Public Con   General (Was Attendance),Prop Svs   Vandalism,2010-07-28,5000093152,619.04,Mansell Construction [Sb]
Public Con   General (Was Attendance),Prop Svs   Bldg Mtce,2010-07-29,5000093361,1479.02,Mansell Construction [Sb]
Public Con   General (Was Attendance),Prop Svs Planned Mtc,2010-08-02,5000093679,501.3,D A R E S Ltd
Public Con   General (Was Attendance),Prop Svs Planned Mtc,2010-08-02,5000093687,2951.82,D A R E S Ltd
Public Con   General (Was Attendance),Pay To Pvte Contract,2010-08-03,5000093946,22241.78,Fountains Environmental Ltd
Public Con   General (Was Attendance),Electricity,2010-08-09,1900214381,640.89,Edf Energy 1 Ltd
Public Con   General (Was Attendance),Pay To Pvte Contract,2010-08-10,5000095099,750.0,Jmc Ag Ltd
Public Con   General (Was Attendance),Water And Sewerage,2010-08-12,1900214846,530.59,Southern Water Authority
Public Con   General (Was Attendance),Water And Sewerage,2010-08-18,1900215949,501.92,Southern Water Authority
Public Con   General (Was Attendance),Water And Sewerage,2010-08-18,1900215950,1429.27,Southern Water Authority
Public Con   General (Was Attendance),Pay To Pvte Contract,2010-08-20,5000097025,595.17,Fountains Environmental Ltd
Public Con   General (Was Attendance),Prop Svs   Bldg Mtce,2010-08-23,5000097346,543.42,Mansell Construction [Sb]
Public Con   General (Was Attendance),Prop Svs   Bldg Mtce,2010-08-23,5000097290,1199.05,Mansell Construction [Sb]
Public Con   General (Was Attendance),Water And Sewerage,2010-08-24,1900220836,762.9,Southern Water Authority
Public Con   General (Was Attendance),Electricity,2010-08-25,1700030359,1375.63,Edf Energy 1 Ltd
Public Con   General (Was Attendance),Electricity,2010-08-25,1700030359,-1060.18,Edf Energy 1 Ltd
Public Con   General (Was Attendance),Water And Sewerage,2010-08-26,1900221185,828.45,Southern Water Authority
Public Con   General (Was Attendance),Water And Sewerage,2010-08-26,1900221340,1747.1,Southern Water Authority
Public Con   General (Was Attendance),Water And Sewerage,2010-09-02,1900226267,588.03,Southern Water Authority
Public Con   General (Was Attendance),Prop Svs   Bldg Mtce,2010-09-03,5000099341,2914.0,Tim Knight Roofing Services Ltd
Public Con   General (Was Attendance),Water And Sewerage,2010-09-10,1900227209,663.62,Edf Energy 1 Ltd
Public Con   General (Was Attendance),Pay To Pvte Contract,2010-09-10,5000100752,21345.58,Fountains Environmental Ltd
Public Con   General (Was Attendance),Prop Svs Planned Mtc,2010-09-14,5000101254,2951.82,D A R E S Ltd
Public Con   General (Was Attendance),Water And Sewerage,2010-09-15,1700031057,-663.62,Edf Energy 1 Ltd
Public Con   General (Was Attendance),Water And Sewerage,2010-09-15,1900227370,663.62,Southern Water Authority
Public Con   General (Was Attendance),Prop Svs   Bldg Mtce,2010-09-16,5000101608,717.0,Mansell Construction [Sb]
Public Con   General (Was Attendance),Prop Svs   Bldg Mtce,2010-09-16,5000101607,2332.0,Mansell Construction [Sb]
Public Con   General (Was Attendance),Pay To Pvte Contract,2010-09-17,5000101900,19214.15,Fountains Environmental Ltd
Public Con   General (Was Attendance),Pay To Pvte Contract,2010-09-17,5000101899,25182.16,Fountains Environmental Ltd
Public Con   General (Was Attendance),Prop Svs   Bldg Mtce,2010-09-21,5000102620,557.0,Mansell Construction [Sb]
Public Con   General (Was Attendance),Water And Sewerage,2010-09-22,1900233276,634.56,Southern Water Authority
Public Con   General (Was Attendance),Water And Sewerage,2010-09-22,1900233274,1021.5,Southern Water Authority
Public Con   General (Was Attendance),Pay To Pvte Contract,2010-09-23,5105616354,-22241.78,Fountains Environmental Ltd
Public Con   General (Was Attendance),Electricity,2010-09-28,1900233765,1707.58,Edf Energy 1 Ltd
Public Con   General (Was Attendance),Electricity,2010-09-28,1900233765,500.39,Edf Energy 1 Ltd
Public Con   General (Was Attendance),Electricity,2010-09-28,1900233765,-845.16,Edf Energy 1 Ltd
Public Con   General (Was Attendance),Pay To Pvte Contract,2010-10-04,5000104603,20667.76,Fountains Environmental Ltd
Public Con   General (Was Attendance),Prop Svs Planned Mtc,2010-10-05,5000104863,761.76,D A R E S Ltd
Public Con   General (Was Attendance),Prop Svs Planned Mtc,2010-10-05,5000104858,501.3,D A R E S Ltd
Public Con   General (Was Attendance),Electricity,2010-10-06,1700031913,1360.45,Edf Energy 1 Ltd
Public Con   General (Was Attendance),Electricity,2010-10-06,1700031913,-687.12,Edf Energy 1 Ltd
Public Con   General (Was Attendance),Water And Sewerage,2010-10-06,1900238945,1790.41,Southern Water Authority
Public Con   General (Was Attendance),Water And Sewerage,2010-10-08,1900239698,880.97,Southern Water Authority
Public Con   General (Was Attendance),Prop Svs   Bldg Mtce,2010-10-12,5000106317,1314.33,Mansell Construction [Sb]
Public Con   General (Was Attendance),Water And Sewerage,2010-10-14,1900245391,906.82,Southern Water Authority
Public Con   General (Was Attendance),Prop Svs   Bldg Mtce,2010-10-18,5000107287,756.28,Mansell Construction [Sb]
Public Con   General (Was Attendance),Prop Svs   Vandalism,2010-10-19,5000107738,569.64,Wallgate Ltd
Public Con   General (Was Attendance),Prop Svs Planned Mtc,2010-10-19,5000107732,6699.0,Wallgate Ltd
Public Con   General (Was Attendance),Water And Sewerage,2010-10-21,1900246051,557.97,Southern Water Authority
Public Con   General (Was Attendance),Water And Sewerage,2010-10-21,1900246027,1187.86,Southern Water Authority
Public Con   General (Was Attendance),Water And Sewerage,2010-10-21,1900246035,1283.9,Southern Water Authority
Public Con   General (Was Attendance),Water And Sewerage,2010-10-21,1900246028,1300.52,Southern Water Authority
Public Con   General (Was Attendance),Water And Sewerage,2010-10-28,1900251434,1486.26,Southern Water Authority
Public Con   General (Was Attendance),Water And Sewerage,2010-10-28,1900251420,1114.36,Southern Water Authority
Public Con   General (Was Attendance),Water And Sewerage,2010-10-28,1900251424,618.09,Southern Water Authority
Public Con   General (Was Attendance),Water And Sewerage,2010-11-02,1700033339,-989.31,Southern Water Authority
Public Con   General (Was Attendance),Water And Sewerage,2010-11-03,1900252756,904.19,Southern Water Authority
Public Con   General (Was Attendance),Electricity,2010-11-09,1900253837,1793.05,Edf Energy 1 Ltd
Public Con   General (Was Attendance),Prop Svs Planned Mtc,2010-11-10,5000111630,856.98,D A R E S Ltd
Public Con   General (Was Attendance),Water And Sewerage,2010-11-15,1900259656,639.05,Southern Water Authority
Public Con   General (Was Attendance),Water And Sewerage,2010-11-15,1900259648,648.59,Southern Water Authority
Public Con   General (Was Attendance),Water And Sewerage,2010-11-15,1900259619,1565.21,Southern Water Authority
Public Con   General (Was Attendance),Electricity,2010-11-16,1700034396,-978.24,Edf Energy 1 Ltd
Public Con   General (Was Attendance),Water And Sewerage,2010-11-16,1900259692,1394.6,Southern Water Authority
Public Con   General (Was Attendance),Electricity,2010-11-17,1700034415,-978.63,Edf Energy 1 Ltd
Public Con   General (Was Attendance),Electricity,2010-11-17,1700034408,-1034.83,Edf Energy 1 Ltd
Public Con   General (Was Attendance),Electricity,2010-11-19,1700034430,1146.33,Edf Energy 1 Ltd
Public Con   General (Was Attendance),Electricity,2010-11-19,1700034430,-1286.46,Edf Energy 1 Ltd
Public Con   General (Was Attendance),Water And Sewerage,2010-11-23,1900260512,576.08,Southern Water Authority
Public Con   General (Was Attendance),Prop Svs   Bldg Mtce,2010-11-24,5000114241,1960.0,Mansell Construction [Sb]
Public Con   General (Was Attendance),Water And Sewerage,2010-11-25,1900265232,1403.21,Southern Water Authority
Public Con   General (Was Attendance),Pay To Pvte Contract,2010-11-29,5000114651,600.0,Island Environmental Hygiene Ltd
Public Con   General (Was Attendance),Water And Sewerage,2010-11-29,1900265525,1934.09,Southern Water Authority
Public Con   General (Was Attendance),Pay To Pvte Contract,2010-11-30,5000114959,10901.57,Fountains Environmental Ltd
Public Con   General (Was Attendance),Water And Sewerage,2010-12-01,1900266016,980.02,Southern Water Authority
Public Con   General (Was Attendance),Water And Sewerage,2010-12-01,1900266022,593.61,Southern Water Authority
Public Con   General (Was Attendance),Water And Sewerage,2010-12-02,1900266125,576.3,Southern Water Authority
Public Con   General (Was Attendance),Water And Sewerage,2010-12-14,1700035906,-639.05,Southern Water Authority
Public Con   General (Was Attendance),Water And Sewerage,2010-12-15,1900272414,535.71,Southern Water Authority
Public Con   General (Was Attendance),Prop Svs   Bldg Mtce,2010-12-17,5000118016,1054.3,Mansell Construction [Sb]
Public Con   General (Was Attendance),Prop Svs Planned Mtc,2010-12-17,5000117904,1299.02,Mansell Construction [Sb]
Public Con   General (Was Attendance),Prop Svs   Bldg Mtce,2010-12-22,5000118742,578.0,Mansell Construction [Sb]
Public Con   General (Was Attendance),Electricity,2011-01-06,1900283825,806.29,Edf Energy 1 Ltd
Public Con   General (Was Attendance),Water And Sewerage,2011-01-11,1900284407,599.28,Southern Water Authority
Public Con   General (Was Attendance),Water And Sewerage,2011-01-11,1900284408,519.83,Southern Water Authority
Public Con   General (Was Attendance),Water And Sewerage,2011-01-14,1900285097,622.12,Southern Water Authority
Public Con   General (Was Attendance),Water And Sewerage,2011-01-21,1900290313,1774.74,Southern Water Authority
Public Con   General (Was Attendance),Water And Sewerage,2011-01-21,1900290312,819.66,Southern Water Authority
Public Con   General (Was Attendance),Water And Sewerage,2011-01-21,1900290314,787.28,Southern Water Authority
Public Con   General (Was Attendance),Water And Sewerage,2011-01-21,1900290318,510.97,Southern Water Authority
Public Con   General (Was Attendance),Water And Sewerage,2011-01-24,1900290359,562.34,Southern Water Authority
Public Con   General (Was Attendance),Pay To Pvte Contract,2011-01-24,5000122880,10901.57,Fountains Environmental Ltd
Public Con   General (Was Attendance),Water And Sewerage,2011-01-27,1900291020,660.08,Southern Water Authority
Public Con   General (Was Attendance),Pay To Pvte Contract,2011-02-03,5000125016,10901.57,Fountains Environmental Ltd
Public Con   General (Was Attendance),Water And Sewerage,2011-02-03,1900296905,1151.31,Southern Water Authority
Public Con   General (Was Attendance),Water And Sewerage,2011-02-11,1900298047,712.84,Southern Electric
Public Con   General (Was Attendance),Water And Sewerage,2011-02-11,1900298048,709.79,Southern Water Authority
Public Con   General (Was Attendance),Water And Sewerage,2011-02-11,1900298043,722.07,Southern Water Authority
Public Con   General (Was Attendance),Water And Sewerage,2011-02-18,1900303647,2072.22,Southern Water Authority
Public Con   General (Was Attendance),Water And Sewerage,2011-02-18,1900303552,712.84,Southern Water Authority
Public Con   General (Was Attendance),Water And Sewerage,2011-02-18,1900303644,525.02,Southern Water Authority
Public Con   General (Was Attendance),Water And Sewerage,2011-02-22,1900303831,831.08,Southern Water Authority
Public Con   General (Was Attendance),Pay To Pvte Contract,2011-02-24,5000128824,10901.57,Fountains Environmental Ltd
Public Con   General (Was Attendance),Water And Sewerage,2011-03-07,1900310590,643.28,Southern Water Authority
Public Con   General (Was Attendance),Water And Sewerage,2011-03-07,1900310653,525.83,Southern Water Authority
Public Con   General (Was Attendance),Water And Sewerage,2011-03-10,1900311084,532.36,Southern Water Authority
Public Con   General (Was Attendance),Electricity,2011-03-21,1900317006,510.61,Southern Electric
Public Con   General (Was Attendance),Water And Sewerage,2011-03-31,1900324070,561.12,Southern Water Authority
Public Con   General (Was Attendance),Pay To Pvte Contract,2011-03-31,5000135014,10901.57,Fountains Environmental Ltd
Public Con   General (Was Attendance),Prop Svs   Vandalism,2011-04-04,5000135604,571.15,Mansell Construction [Sb]
Public Con   General (Was Attendance),Prop Svs   Bldg Mtce,2011-04-11,5000136406,576.41,Mansell Construction [Sb]
Public Con   General (Was Attendance),Prop Svs Planned Mtc,2011-04-20,5000138178,1070.28,Mansell Construction [Sb]
Public Con   General (Was Attendance),Water And Sewerage,2011-04-27,1900336924,542.16,Southern Water Authority
Public Con   General (Was Attendance),Water And Sewerage,2011-05-04,1900337324,532.76,Southern Water Authority
Public Con   General (Was Attendance),Water And Sewerage,2011-05-04,1700042064,-996.7,Southern Water Authority
Public Con   General (Was Attendance),Prop Svs Planned Mtc,2011-05-04,5000139683,12282.0,Wallgate Ltd
Public Con   General (Was Attendance),Prop Svs Planned Mtc,2011-05-04,5000139613,746.55,D A R E S Ltd
Public Con   General (Was Attendance),Prop Svs Planned Mtc,2011-05-10,5000140511,1250.68,Southern Electric
Public Con   General (Was Attendance),Pay To Pvte Contract,2011-05-13,5000141230,1635.28,Mansell Construction [Sb]
Public Con   General (Was Attendance),Prop Svs   Bldg Mtce,2011-05-13,5000141230,1635.27,Mansell Construction [Sb]
Public Con   General (Was Attendance),Water And Sewerage,2011-05-18,1900343527,584.85,Southern Water Authority
Public Con   General (Was Attendance),Water And Sewerage,2011-05-18,1900343707,586.96,Southern Water Authority
Public Con   General (Was Attendance),Water And Sewerage,2011-05-19,1900343771,576.12,Southern Water Authority
Public Con   General (Was Attendance),Water And Sewerage,2011-05-19,1900343762,514.43,Southern Water Authority
Public Con   General (Was Attendance),Pay To Pvte Contract,2011-05-20,5000142306,9742.75,Fountains Environmental Ltd
Public Con   General (Was Attendance),Water And Sewerage,2011-05-24,1900344417,687.53,Southern Water Authority
Public Con   General (Was Attendance),Prop Svs   Bldg Mtce,2011-05-31,5000143405,1261.0,Mansell Construction [Sb]
Public Con   General (Was Attendance),Prop Svs   Vandalism,2011-05-31,5000143490,544.09,Mansell Construction [Sb]
Public Con   General (Was Attendance),Prop Svs   Bldg Mtce,2011-05-31,5000143516,503.96,Mansell Construction [Sb]
Public Con   General (Was Attendance),Water And Sewerage,2011-06-02,1900350906,537.77,Southern Water Authority
Public Con   General (Was Attendance),Water And Sewerage,2011-06-02,1900351002,634.05,Southern Water Authority
Public Con   General (Was Attendance),Water And Sewerage,2011-06-06,1900351290,584.64,Southern Water Authority
Public Con   General (Was Attendance),Prop Svs Planned Mtc,2011-06-07,5000144376,959.85,D A R E S Ltd
Public Con   General (Was Attendance),Prop Svs   Bldg Mtce,2011-06-10,5000145038,2162.83,Mansell Construction [Sb]
Public Con   General (Was Attendance),Prop Svs   Bldg Mtce,2011-06-10,5000145036,1010.79,Mansell Construction [Sb]
Public Con   General (Was Attendance),Pay To Pvte Contract,2011-06-15,5000145812,750.0,Jmc Ag Ltd
Public Con   General (Was Attendance),Electricity,2011-06-17,1900356999,526.84,Southern Electric
Public Con   General (Was Attendance),Pay To Pvte Contract,2011-06-21,5000146527,9742.75,Fountains Environmental Ltd
Public Con   General (Was Attendance),Water And Sewerage,2011-06-21,1900357342,1402.96,Southern Water Authority
Public Con   General (Was Attendance),Water And Sewerage,2011-06-22,1900362780,587.62,Southern Water Authority
Public Con   General (Was Attendance),Water And Sewerage,2011-06-22,1700043910,-587.62,Southern Water Authority
Public Con   General (Was Attendance),Water And Sewerage,2011-06-22,1700043911,-587.62,Southern Water Authority
Public Con   General (Was Attendance),Prop Svs   Bldg Mtce,2011-06-23,5000147045,702.33,Mansell Construction [Sb]
Public Con   General (Was Attendance),Prop Svs   Bldg Mtce,2011-06-24,5000147252,1946.0,Mansell Construction [Sb]
Public Con   General (Was Attendance),Prop Svs   Bldg Mtce,2011-06-27,5000147477,811.77,Mansell Construction [Sb]
Public Con   General (Was Attendance),Water And Sewerage,2011-06-28,1900363280,535.41,Southern Water Authority
Public Con   General (Was Attendance),Pay To Pvte Contract,2011-07-04,5000148209,20693.01,Fountains Environmental Ltd
Public Con   General (Was Attendance),Water And Sewerage,2011-07-04,1900363986,608.8,Southern Water Authority
Public Con   General (Was Attendance),Water And Sewerage,2011-07-04,1900363985,609.34,Southern Water Authority
Public Con   General (Was Attendance),Prop Svs Planned Mtc,2011-07-06,5000148543,853.2,D A R E S Ltd
Public Con   General (Was Attendance),Prop Svs Planned Mtc,2011-07-06,5000148537,531.4,D A R E S Ltd
Public Con   General (Was Attendance),Prop Svs   Bldg Mtce,2011-07-08,5000149109,890.0,Mansell Construction Svcs Ltd [Sb]
Public Con   General (Was Attendance),Water And Sewerage,2011-07-18,1900369897,1099.99,Southern Water Authority
Public Con   General (Was Attendance),Water And Sewerage,2011-07-18,1900369898,521.9,Southern Water Authority
Public Con   General (Was Attendance),Prop Svs   Bldg Mtce,2011-07-21,5000151288,3866.0,Tim Knight Roofing Services Ltd
Public Con   General (Was Attendance),Pay To Pvte Contract,2011-07-26,5000151751,16745.0,Fountains Environmental Ltd
Public Con   General (Was Attendance),Prop Svs   Bldg Mtce,2011-08-01,5000152343,828.0,Mansell Construction Svcs Ltd [Sb]
Public Con   General (Was Attendance),Prop Svs   Bldg Mtce,2011-08-01,5000152345,1797.97,Mansell Construction Svcs Ltd [Sb]
Public Con   General (Was Attendance),Prop Svs Planned Mtc,2011-08-03,5000152858,3306.15,D A R E S Ltd
Public Con   General (Was Attendance),Water And Sewerage,2011-08-10,1900381583,1123.34,Southern Water Authority
Public Con   General (Was Attendance),Prop Svs   Bldg Mtce,2011-08-10,5000153468,1593.0,Mansell Construction Svcs Ltd [Sb]
Public Con   General (Was Attendance),Prop Svs Planned Mtc,2011-08-16,5000154656,637.89,Southern Electric
Public Con   General (Was Attendance),Water And Sewerage,2011-08-17,1900382919,986.37,Southern Water Authority
Public Con   General (Was Attendance),Water And Sewerage,2011-08-17,1900387647,545.57,Southern Water Authority
Public Con   General (Was Attendance),Water And Sewerage,2011-08-19,1900387832,614.97,Southern Water Authority
Public Con   General (Was Attendance),Water And Sewerage,2011-08-25,1900388458,966.31,Southern Water Authority
Public Con   General (Was Attendance),Water And Sewerage,2011-08-26,1900388591,1141.5,Southern Water Authority
Public Con   General (Was Attendance),Water And Sewerage,2011-08-26,1900388597,889.84,Southern Water Authority
Public Con   General (Was Attendance),Water And Sewerage,2011-08-30,1900388801,503.95,Southern Water Authority
Public Con   General (Was Attendance),Pay To Pvte Contract,2011-09-01,5000156671,22424.0,Fountains Environmental Ltd
Public Con   General (Was Attendance),Water And Sewerage,2011-09-12,1900394509,912.06,Southern Water Authority
Public Con   General (Was Attendance),Prop Svs Planned Mtc,2011-09-12,5000158352,3306.15,D A R E S Ltd
Public Con   General (Was Attendance),Water And Sewerage,2011-09-19,1900400236,903.54,Southern Water Authority
Public Con   General (Was Attendance),Water And Sewerage,2011-09-19,1900400239,778.56,Southern Water Authority
Public Con   General (Was Attendance),Water And Sewerage,2011-09-21,1900400543,619.11,Southern Water Authority
Public Con   General (Was Attendance),Water And Sewerage,2011-09-23,1900400871,1371.84,Southern Water Authority
Public Con   General (Was Attendance),Water And Sewerage,2011-09-23,1900400734,594.98,Southern Water Authority
Public Con   General (Was Attendance),Prop Svs Planned Mtc,2011-10-12,5000162954,959.85,D A R E S Ltd
Public Con   General (Was Attendance),Prop Svs Planned Mtc,2011-10-12,5000162955,531.4,D A R E S Ltd
Public Con   General (Was Attendance),Prop Svs Planned Mtc,2011-11-01,5000164605,959.85,D A R E S Ltd
Public Con   General (Was Attendance),Water And Sewerage,2011-11-03,5000165008,600.0,Southern Water Authority
Public Con   General (Was Attendance),Water And Sewerage,2011-11-07,1900419695,864.38,Southern Water Authority
Public Con   General (Was Attendance),Pay To Pvte Contract,2011-11-08,5000165402,900.0,Jmc Ag Ltd
Public Con   General (Was Attendance),Water And Sewerage,2011-11-08,1900419767,542.91,Southern Water Authority
Public Con   General (Was Attendance),Water And Sewerage,2011-11-08,1900419766,553.8,Southern Water Authority
Public Con   General (Was Attendance),Water And Sewerage,2011-11-08,1900419771,1055.45,Southern Water Authority
Public Con   General (Was Attendance),Water And Sewerage,2011-11-10,1900425146,943.0,Southern Water Authority
Public Con   General (Was Attendance),Water And Sewerage,2011-11-11,1700044670,-943.0,Southern Water Authority
Public Con   General (Was Attendance),Water And Sewerage,2011-11-14,1900425644,846.58,Southern Water Authority
Public Con   General (Was Attendance),Water And Sewerage,2011-11-14,1900425647,501.33,Southern Water Authority
Public Con   General (Was Attendance),Water And Sewerage,2011-11-14,1900425652,727.56,Southern Water Authority
Public Con   General (Was Attendance),Water And Sewerage,2011-11-14,1900425652,727.56,Southern Water Authority
Public Con   General (Was Attendance),Pay To Pvte Contract,2011-11-16,5000167366,528.58,Fountains Environmental Ltd
Public Con   General (Was Attendance),Pay To Pvte Contract,2011-11-16,5000167363,862.42,Fountains Environmental Ltd
Public Con   General (Was Attendance),Water And Sewerage,2011-11-17,1900426070,797.46,Southern Water Authority
Public Con   General (Was Attendance),Water And Sewerage,2011-11-21,1900426526,578.7,Southern Water Authority
Public Con   General (Was Attendance),Water And Sewerage,2011-11-21,1900426521,1685.85,Southern Water Authority
Public Con   General (Was Attendance),Water And Sewerage,2011-11-21,1900426525,830.5,Southern Water Authority
Public Con   General (Was Attendance),Water And Sewerage,2011-11-22,1900426632,2893.0,Southern Water Authority
Public Con   General (Was Attendance),Pay To Pvte Contract,2011-11-23,5000168406,1650.97,Fountains Environmental Ltd
Public Con   General (Was Attendance),Pay To Pvte Contract,2011-11-23,5000168405,14842.35,Fountains Environmental Ltd
Public Con   General (Was Attendance),Water And Sewerage,2011-11-25,1900431807,1944.29,Southern Water Authority
Public Con   General (Was Attendance),Water And Sewerage,2011-11-25,1900431814,945.69,Southern Water Authority
Public Con   General (Was Attendance),Water And Sewerage,2011-11-25,1900431817,855.6,Southern Water Authority
Public Con   General (Was Attendance),Pay To Pvte Contract,2011-11-28,5105601627,-18467.0,Fountains Environmental Ltd
Public Con   General (Was Attendance),Pay To Pvte Contract,2011-11-28,5000169060,9490.61,Fountains Environmental Ltd
Public Con   General (Was Attendance),Prop Svs   Bldg Mtce,2011-12-01,5000169545,4520.0,Wsm Associates Ltd
Public Con   General (Was Attendance),Electricity,2011-12-06,1900432740,557.27,Southern Electric
Public Con   General (Was Attendance),Pay To Pvte Contract,2011-12-07,5000170480,2475.98,Fountains Environmental Ltd
Public Con   General (Was Attendance),Prop Svs Planned Mtc,2011-12-19,5000172627,3738.0,Mansell Construction Svcs Ltd [Sb]
Public Con   General (Was Attendance),Prop Svs   Vandalism,2011-12-19,5000172647,570.15,Mansell Construction Svcs Ltd [Sb]
Public Con   General (Was Attendance),Payment To Private Contractors,2012-01-20,5000176505,9490.61,Fountains Env Ltd   Blocked
Public Con   General (Was Attendance),Payment To Private Contractors,2012-02-08,5000179052,3000.0,Extracta Cleaning
Public Con   General (Was Attendance),Payment To Private Contractors,2012-02-08,5000178872,980.0,Wightwash
Public Con   General (Was Attendance),Payment To Private Contractors,2012-02-09,5000179305,727.2,Top Mops Limited
Public Con   General (Was Attendance),Payment To Private Contractors,2012-02-15,5000180646,-980.0,Wightwash
Public Con   General (Was Attendance),Payment To Private Contractors,2012-02-15,5000180674,760.48,Top Mops Limited
Public Con   General (Was Attendance),Payment To Private Contractors,2012-02-16,5000180709,1008.0,Wightwash
Public Con   General (Was Attendance),Payment To Private Contractors,2012-02-22,5000181678,1008.0,Wightwash
Public Con   General (Was Attendance),Payment To Private Contractors,2012-02-29,5000182606,781.02,Top Mops Limited
Public Con   General (Was Attendance),Payment To Private Contractors,2012-02-29,5000182607,1008.0,Wightwash
Public Con   General (Was Attendance),Payment To Private Contractors,2012-03-08,5000183829,980.0,Wightwash
Public Con   General (Was Attendance),Payment To Private Contractors,2012-03-08,5000183824,1008.0,Wightwash
Public Con   General (Was Attendance),Payment To Private Contractors,2012-03-08,5000183828,822.1,Top Mops Limited
Public Con   General (Was Attendance),Payment To Private Contractors,2012-03-08,5000183823,1103.29,Top Mops Limited
Public Con   General (Was Attendance),Payment To Private Contractors,2012-03-08,5000183823,513.78,Top Mops Limited
Public Con   General (Was Attendance),Property Services   Planned Maintenance,2012-03-13,5000185148,1034.12,Mansell Construction Svcs Ltd [Sb]
Public Con   General (Was Attendance),Payment To Private Contractors,2012-03-15,5000185724,6525.0,Extracta Cleaning
Public Con   General (Was Attendance),Charges From Independent Providers,2012-03-15,5000185728,1008.0,Wightwash
Public Con   General (Was Attendance),Payment To Private Contractors,2012-03-15,5000185726,1004.26,Top Mops Limited
Public Con   General (Was Attendance),Payment To Private Contractors,2012-03-15,5000185726,1389.56,Top Mops Limited
Public Con   General (Was Attendance),Payment To Private Contractors,2012-03-22,5000186633,1008.0,Wightwash
Public Con   General (Was Attendance),Payment To Private Contractors,2012-03-26,5000187022,1430.64,Top Mops Limited
Public Con   General (Was Attendance),Payment To Private Contractors,2012-03-26,5000187021,764.79,Top Mops Limited
Public Con   General (Was Attendance),Payment To Private Contractors,2012-03-26,5000187019,1430.64,Top Mops Limited
